bitfinex/quotes_SOLUSD_20250108
["timestamp","ask_amount","ask_price","bid_price","bid_amount"]
[1736371201526,6.1384,194.92,194.82,25.50907958]
[1736371202425,0.5169,194.96,194.87,25.50907958]
[1736371202740,6.2512,194.97,194.91,25.50907958]
[1736371202946,6.2512,194.97,194.92,25.50907958]
[1736371203246,2.57296947,195.01,194.93,25.50907958]
[1736371203536,6.2512,195.03,194.96,15.81469487]
[1736371203830,6.2512,195.03,194.97,15.81469487]
[1736371204527,6.2512,195.03,194.93,2.48]
[1736371204735,6.2512,195.03,194.93,18.29469487]
[1736371205319,6.2512,195.03,194.93,2.48]
[1736371205507,20.0,195.0,194.93,2.48]
[1736371206230,20.0,195.0,194.93,27.78465303]
[1736371206610,6.2512,195.03,194.95,25.30465303]
[1736371206804,6.2512,195.03,194.96,25.30465303]
[1736371207033,6.2512,195.03,194.97,25.30465303]
[1736371207529,6.6248,195.08,194.98,25.30465303]
[1736371207734,20.0,195.05,194.98,25.30465303]
[1736371208037,6.6248,195.08,194.98,25.30465303]
[1736371208247,6.6248,195.08,194.99,25.30465303]
[1736371208747,6.6248,195.08,195.01,25.30465303]
[1736371209243,6.6248,195.08,195.0,25.30465303]
[1736371210968,20.0,195.05,194.95,25.30465303]
[1736371211102,20.0,195.05,194.92,26.93615303]
[1736371212022,20.0,195.05,194.93,25.30465303]
[1736371212547,20.5169,195.01,194.88,25.30465303]
[1736371212845,20.0,194.97,194.88,25.30465303]
[1736371213042,20.0,194.97,194.87,26.95165303]
[1736371213342,20.0,194.97,194.82,26.96835303]
[1736371213549,20.0,194.93,194.82,1.6637]
[1736371213725,20.0,194.93,194.83,25.30465303]
[1736371215461,20.0,194.97,194.85,25.30465303]
[1736371215657,20.0,194.97,194.87,25.30465303]
[1736371217227,20.0,194.97,194.9,25.30465303]
[1736371217433,6.5263,195.0,194.93,25.30465303]
[1736371217651,6.5263,195.0,194.94,25.30465303]
[1736371217944,6.5263,195.0,194.92,25.30465303]
[1736371218164,20.0,194.97,194.89,25.30465303]
[1736371218326,20.0,194.97,194.9,2.48]
[1736371218525,20.0,194.97,194.88,25.30465303]
[1736371219157,20.0,194.97,194.89,25.30465303]
[1736371219461,6.5263,195.0,194.89,25.30465303]
[1736371220047,6.5263,195.0,194.91,25.30465303]
[1736371222057,6.5263,195.0,194.89,25.30465303]
[1736371222559,6.5263,195.0,194.88,45.30465303]
[1736371223055,6.5263,195.0,194.89,23.776884]
[1736371224634,6.5263,195.0,194.89,25.30465303]
[1736371225156,20.0,194.97,194.87,25.30465303]
[1736371225336,20.0,194.97,194.85,2.46]
[1736371225853,20.5169,194.96,194.82,26.96835303]
[1736371226150,20.0,194.92,194.79,25.30465303]
[1736371226358,6.6012,194.9,194.77,26.88215303]
[1736371226651,20.0,194.87,194.77,26.88215303]
[1736371226841,20.0,194.87,194.77,2.46]
[1736371227051,20.0,194.87,194.75,2.46]
[1736371228449,20.0,194.87,194.75,27.76465303]
[1736371228650,20.0,194.87,194.73,25.30465303]
[1736371228843,20.0,194.87,194.73,2.46]
[1736371229161,20.0,194.87,194.74,49.08153703]
[1736371229365,20.0,194.87,194.75,25.30465303]
[1736371229535,20.0,194.87,194.76,49.08153703]
[1736371229852,20.0,194.87,194.73,27.76465303]
[1736371230364,20.0,194.83,194.73,27.76465303]
[1736371230548,20.0,194.83,194.73,2.46]
[1736371231064,2.9769,194.86,194.74,23.776884]
[1736371231271,20.0,194.85,194.74,49.08153703]
[1736371231455,20.0,194.85,194.74,23.776884]
[1736371232369,20.0,194.85,194.75,25.30465303]
[1736371232564,20.0,194.85,194.77,25.30465303]
[1736371232747,20.0,194.85,194.76,25.30465303]
[1736371232946,20.0,194.85,194.76,23.776884]
[1736371233140,87.9012,194.9,194.78,25.30465303]
[1736371233459,20.0,194.87,194.76,25.30465303]
[1736371233858,20.0,194.87,194.76,23.776884]
[1736371234063,20.0,194.87,194.76,49.08153703]
[1736371234573,20.0,194.87,194.76,23.776884]
[1736371234966,20.0,194.87,194.76,49.08153703]
[1736371235272,20.0,194.87,194.76,25.30465303]
[1736371235642,20.0,194.87,194.77,23.776884]
[1736371235977,20.0,194.87,194.79,49.08153703]
[1736371236280,20.0,194.87,194.8,25.30465303]
[1736371236644,20.0,194.87,194.79,23.776884]
[1736371236867,20.0,194.87,194.76,2.46]
[1736371237043,20.0,194.87,194.76,26.236884]
[1736371237975,20.0,194.87,194.72,25.30465303]
[1736371238159,20.0,194.83,194.71,1.5075]
[1736371238356,20.0,194.83,194.7,27.76465303]
[1736371238552,20.0,194.83,194.72,25.30465303]
[1736371239254,20.0,194.79,194.68,0.77009403]
[1736371239561,20.0,194.79,194.67,2.46]
[1736371241083,20.0,194.79,194.68,49.08153703]
[1736371241653,20.0,194.79,194.69,25.30465303]
[1736371241877,0.5169,194.81,194.72,49.08153703]
[1736371242071,6.5806,194.82,194.73,25.30465303]
[1736371242284,20.0,194.79,194.69,25.30465303]
[1736371242487,20.0,194.79,194.68,25.30465303]
[1736371243195,20.0,194.79,194.68,23.776884]
[1736371243789,20.0,194.79,194.68,49.08153703]
[1736371244786,20.0,194.79,194.69,25.30465303]
[1736371247093,20.0,194.79,194.68,49.08153703]
[1736371247296,20.0,194.79,194.67,27.76465303]
[1736371248082,20.0,194.79,194.68,25.30465303]
[1736371248299,20.0,194.79,194.72,25.30465303]
[1736371248518,6.5806,194.82,194.73,25.30465303]
[1736371249203,6.5806,194.82,194.72,25.30465303]
[1736371249373,6.5806,194.82,194.69,25.30465303]
[1736371249776,20.0,194.79,194.69,25.30465303]
[1736371249983,20.0,194.79,194.7,23.776884]
[1736371250403,20.0,194.79,194.7,49.08153703]
[1736371250677,6.5806,194.82,194.74,25.30465303]
[1736371251180,6.5806,194.82,194.72,49.08153703]
[1736371251384,6.5806,194.82,194.73,25.30465303]
[1736371255414,6.5806,194.82,194.74,25.30465303]
[1736371255703,6.5806,194.82,194.76,25.30465303]
[1736371257607,6.5806,194.82,194.75,25.30465303]
[1736371258106,6.0388,194.87,194.8,25.30465303]
[1736371258312,6.0388,194.92,194.84,25.30465303]
[1736371258482,6.0388,194.92,194.85,25.30465303]
[1736371258692,6.0388,194.92,194.86,26.07417165]
[1736371259207,7.91733875,194.95,194.88,25.30465303]
[1736371259509,6.0388,194.97,194.88,25.30465303]
[1736371260391,6.0388,194.97,194.89,25.30465303]
[1736371260585,6.0388,194.97,194.89,0.76929936]
[1736371260786,6.0388,194.97,194.89,49.08153703]
[1736371260988,0.5169,195.0,194.91,25.30465303]
[1736371261188,6.0388,195.02,194.94,49.08153703]
[1736371261408,6.0388,195.02,194.96,25.30465303]
[1736371261705,6.0388,195.02,194.95,2.46]
[1736371262414,20.0,194.99,194.9,29.31925303]
[1736371262909,20.0,194.99,194.92,23.776884]
[1736371263119,6.0388,195.02,194.95,25.30465303]
[1736371263282,6.0388,195.02,194.95,26.0737158]
[1736371263486,6.0388,195.02,194.9,26.85925303]
[1736371263681,6.0388,195.02,194.91,2.46]
[1736371264016,6.0388,195.02,194.91,51.54153703]
[1736371264180,6.0388,195.02,194.96,25.30465303]
[1736371264384,0.5169,195.05,194.97,0.76908067]
[1736371264585,0.5169,195.05,194.96,25.30465303]
[1736371265310,0.5169,195.05,194.95,25.30465303]
[1736371265491,0.5169,195.05,194.95,23.776884]
[1736371266506,0.5169,195.05,194.96,2.46]
[1736371268214,0.5169,195.05,194.92,25.30465303]
[1736371268215,20.0,195.02,194.92,25.30465303]
[1736371268530,20.0,195.02,194.89,25.30465303]
[1736371268810,20.0,195.01,194.89,25.30465303]
[1736371268998,20.0,194.97,194.87,25.30465303]
[1736371269310,20.0,194.97,194.88,49.08153703]
[1736371269523,81.3,195.0,194.92,25.30465303]
[1736371269690,83.76,195.0,194.93,25.30465303]
[1736371270209,81.3,195.0,194.93,25.30465303]
[1736371270413,2.46,195.01,194.93,25.30465303]
[1736371271520,20.0,195.03,194.94,25.30465303]
[1736371271693,20.0,195.03,194.96,25.30465303]
[1736371271887,20.0,195.03,194.95,25.30465303]
[1736371272317,20.0,195.03,194.96,25.30465303]
[1736371273620,6.3446,195.06,194.99,25.30465303]
[1736371273913,6.3446,195.06,195.0,25.30465303]
[1736371274325,6.3446,195.06,195.01,25.30465303]
[1736371274624,6.6224,195.12,195.03,25.30465303]
[1736371276218,20.0,195.09,195.0,25.30465303]
[1736371276407,20.0,195.09,194.99,27.76465303]
[1736371276811,20.0,195.09,194.99,2.46]
[1736371277123,20.0,195.09,194.94,27.76465303]
[1736371277322,20.0,195.04,194.91,1.5986]
[1736371277528,20.0,195.04,194.89,25.30465303]
[1736371278421,20.0,195.04,194.91,23.776884]
[1736371278926,20.0,195.0,194.87,25.30465303]
[1736371279226,20.0,194.96,194.87,25.30465303]
[1736371280139,20.0,194.96,194.88,49.08153703]
[1736371280510,20.0,194.96,194.89,25.30465303]
[1736371281025,20.0,194.96,194.88,25.30465303]
[1736371282434,20.0,194.96,194.86,25.30465303]
[1736371283333,20.0,194.96,194.87,25.30465303]
[1736371283553,20.0,194.96,194.88,25.30465303]
[1736371285329,20.5169,194.96,194.87,25.30465303]
[1736371285714,20.5169,194.96,194.88,25.30465303]
[1736371286014,20.5169,194.96,194.85,23.776884]
[1736371286015,20.5169,194.96,194.85,25.30465303]
[1736371286218,22.46,194.95,194.83,25.30465303]
[1736371286407,22.46,194.95,194.81,25.30465303]
[1736371286614,22.46,194.95,194.78,2.46]
[1736371286615,22.46,194.95,194.83,25.30465303]
[1736371287443,22.46,194.95,194.82,25.30465303]
[1736371287815,20.0,194.91,194.81,25.30465303]
[1736371288036,20.0,194.9,194.8,25.30465303]
[1736371288541,20.0,194.9,194.78,25.30465303]
[1736371289041,20.0,194.9,194.79,25.30465303]
[1736371289242,20.0,194.9,194.8,25.30465303]
[1736371290237,20.0,194.9,194.79,25.30465303]
[1736371291419,20.0,194.9,194.81,25.30465303]
[1736371292250,6.387,194.93,194.83,23.776884]
[1736371292434,6.387,194.93,194.87,25.30465303]
[1736371292625,6.387,194.93,194.88,25.30465303]
[1736371292827,6.387,194.93,194.86,25.30465303]
[1736371293346,6.387,194.93,194.83,27.78465303]
[1736371293636,6.387,194.93,194.79,0.76956214]
[1736371293637,20.0,194.89,194.79,25.30465303]
[1736371293848,20.0,194.89,194.83,25.30465303]
[1736371294019,81.3,194.92,194.84,25.30465303]
[1736371295942,81.3,194.92,194.85,25.30465303]
[1736371296143,6.387,194.93,194.87,25.30465303]
[1736371297155,6.387,194.93,194.88,25.30465303]
[1736371297652,6.387,194.93,194.87,25.30465303]
[1736371297844,6.387,194.93,194.86,25.30465303]
[1736371298259,6.387,194.93,194.83,25.30465303]
[1736371298580,6.387,194.93,194.82,25.30465303]
[1736371298757,6.387,194.93,194.86,25.30465303]
[1736371298947,6.387,194.93,194.88,25.30465303]
[1736371299141,0.5169,194.96,194.88,25.30465303]
[1736371299351,8.5449,194.97,194.9,25.30465303]
[1736371299959,8.5449,194.97,194.89,25.30465303]
[1736371300454,8.5449,194.97,194.88,25.30465303]
[1736371300754,20.0,194.94,194.83,25.30465303]
[1736371301754,20.0,194.93,194.81,25.30465303]
[1736371301929,20.0,194.93,194.82,25.30465303]
[1736371302333,20.0,194.93,194.84,25.30465303]
[1736371302952,20.0,194.93,194.86,25.30465303]
[1736371303163,81.3,194.96,194.87,25.30465303]
[1736371303467,20.0,194.93,194.84,25.30465303]
[1736371305163,6.0849,194.97,194.88,25.30465303]
[1736371305334,6.0849,194.97,194.9,25.30465303]
[1736371305770,6.0849,194.97,194.92,25.30465303]
[1736371305937,7.91733875,195.0,194.93,25.30465303]
[1736371306331,6.1645,195.02,194.96,25.30465303]
[1736371307030,6.1645,195.02,194.95,25.30465303]
[1736371307235,6.1645,195.02,194.94,25.30465303]
[1736371307435,6.1645,195.02,194.95,25.30465303]
[1736371307954,6.1645,195.02,194.92,23.776884]
[1736371307955,0.5169,195.06,194.97,25.30465303]
[1736371308244,0.5169,195.06,194.98,25.30465303]
[1736371308855,6.1645,195.07,194.99,25.30465303]
[1736371309239,6.1645,195.07,194.96,25.30465303]
[1736371309473,6.1645,195.07,194.95,25.30465303]
[1736371309647,6.1645,195.07,194.96,49.08153703]
[1736371309977,6.1645,195.07,194.97,25.30465303]
[1736371310352,6.1645,195.07,194.98,25.30465303]
[1736371310539,6.1645,195.07,194.97,25.30465303]
[1736371311172,6.1645,195.07,194.96,25.30465303]
[1736371311346,6.1645,195.07,194.95,25.30465303]
[1736371311662,6.1645,195.07,194.96,23.776884]
[1736371311863,6.1645,195.07,194.97,25.30465303]
[1736371312068,6.1645,195.07,194.96,25.30465303]
[1736371312767,6.1645,195.07,194.96,23.776884]
[1736371312973,6.1645,195.07,194.96,49.08153703]
[1736371313143,6.1645,195.07,194.97,25.30465303]
[1736371313676,6.1645,195.07,194.96,49.08153703]
[1736371314344,6.1645,195.07,194.96,23.776884]
[1736371314674,6.1645,195.07,194.96,25.30465303]
[1736371314859,6.1645,195.07,194.97,25.30465303]
[1736371315042,6.1645,195.07,194.96,25.30465303]
[1736371315470,6.1645,195.07,194.96,15.80923878]
[1736371315776,6.1645,195.07,194.97,15.80923878]
[1736371317490,6.1645,195.07,194.97,23.776884]
[1736371319986,6.1645,195.07,194.96,15.80923878]
[1736371320286,6.1645,195.07,194.92,138.5]
[1736371320287,20.0,195.04,194.92,15.80923878]
[1736371321183,20.0,195.04,194.95,15.80923878]
[1736371321883,20.0,195.04,194.96,15.80923878]
[1736371322456,20.0,195.04,194.94,15.80923878]
[1736371322755,20.0,195.03,194.93,15.80923878]
[1736371323451,20.0,195.03,194.9,18.24923878]
[1736371323651,20.5169,195.01,194.88,56.56470033]
[1736371323880,20.5169,195.01,194.88,15.80923878]
[1736371324161,6.5514,195.0,194.88,15.80923878]
[1736371324577,20.0,194.97,194.88,15.80923878]
[1736371324780,20.0,194.97,194.87,15.80923878]
[1736371324990,20.0,194.97,194.88,15.80923878]
[1736371325188,6.5514,195.0,194.92,15.80923878]
[1736371325378,6.5514,195.0,194.94,15.80923878]
[1736371325680,8.01879969,195.04,194.94,15.80923878]
[1736371325860,8.01879969,195.04,194.95,15.80923878]
[1736371326077,8.01879969,195.04,194.94,15.80923878]
[1736371326290,20.0,195.01,194.91,15.80923878]
[1736371326599,20.0,195.01,194.89,15.80923878]
[1736371327092,20.0,195.01,194.9,15.80923878]
[1736371327399,20.0,195.01,194.92,15.80923878]
[1736371327868,20.0,195.01,194.91,23.776884]
[1736371328197,20.0,195.01,194.9,15.80923878]
[1736371328386,20.0,195.01,194.91,15.80923878]
[1736371328982,20.0,195.01,194.9,39.58612278]
[1736371329310,20.0,195.01,194.91,15.80923878]
[1736371330073,6.2728,195.05,194.95,15.80923878]
[1736371330271,6.2728,195.05,194.96,15.80923878]
[1736371330468,6.2728,195.05,194.95,15.80923878]
[1736371332497,6.2728,195.05,194.93,2.46]
[1736371332982,20.0,195.02,194.93,2.46]
[1736371333570,6.2728,195.05,194.86,14.4795]
[1736371333571,20.0,195.01,194.9,15.80923878]
[1736371334275,20.0,195.01,194.91,23.776884]
[1736371335599,20.0,195.01,194.89,38.24923878]
[1736371336203,20.0,195.01,194.9,39.58612278]
[1736371336503,20.0,195.01,194.89,2.44]
[1736371336681,20.0,195.01,194.88,18.24923878]
[1736371336870,20.0,195.01,194.89,23.776884]
[1736371337067,20.0,195.01,194.89,39.58612278]
[1736371337485,20.0,195.01,194.9,15.80923878]
[1736371338381,20.0,195.01,194.91,15.80923878]
[1736371340879,20.0,195.01,194.89,39.58612278]
[1736371341096,20.0,195.01,194.89,23.776884]
[1736371341405,20.5169,194.97,194.86,154.30923878]
[1736371341596,6.3606,194.96,194.85,15.80923878]
[1736371342212,6.3606,194.96,194.86,23.776884]
[1736371342379,6.3606,194.96,194.84,15.80923878]
[1736371342577,6.3606,194.96,194.85,15.80923878]
[1736371342779,6.3606,194.96,194.87,15.80923878]
[1736371344408,6.3606,194.96,194.88,15.80923878]
[1736371345507,6.3606,194.96,194.89,23.776884]
[1736371345694,6.3606,194.96,194.89,39.58612278]
[1736371346707,6.3606,194.96,194.89,23.776884]
[1736371348288,6.3606,194.96,194.89,15.80923878]
[1736371348881,6.3606,194.96,194.87,15.80923878]
[1736371349081,6.3606,194.96,194.86,15.80923878]
[1736371350288,6.3606,194.96,194.87,15.80923878]
[1736371351008,6.3606,194.96,194.88,39.58612278]
[1736371351216,6.3606,194.96,194.88,23.776884]
[1736371353218,6.3606,194.96,194.85,35.80923878]
[1736371353408,6.3606,194.96,194.84,18.22923878]
[1736371354222,6.3606,194.96,194.85,23.776884]
[1736371354514,6.3606,194.96,194.85,39.58612278]
[1736371355992,6.3606,194.96,194.88,15.80923878]
[1736371356193,6.3606,194.96,194.89,15.80923878]
[1736371357493,6.3606,194.96,194.89,23.776884]
[1736371358499,6.3606,194.96,194.86,15.80923878]
[1736371359402,6.3606,194.96,194.84,39.58612278]
[1736371359618,6.3606,194.96,194.85,15.80923878]
[1736371361120,6.3606,194.96,194.86,39.58612278]
[1736371361320,6.3606,194.96,194.89,15.80923878]
[1736371361708,6.3606,194.96,194.9,15.80923878]
[1736371362717,81.3,195.0,194.9,15.80923878]
[1736371363217,16.86338976,195.01,194.84,151.3307]
[1736371363218,14.75949969,195.01,194.93,15.80923878]
[1736371363430,8.01879969,195.01,194.97,15.80923878]
[1736371363729,8.01879969,195.01,194.99,15.80923878]
[1736371363897,8.01879969,195.01,194.99,2.42]
[1736371364324,16.03759939,195.03,194.99,2.42]
[1736371364501,8.01879969,195.04,194.99,2.42]
[1736371364703,8.01879969,195.04,194.99,18.22923878]
[1736371364924,8.01879969,195.04,194.99,2.42]
[1736371365524,0.5169,195.06,194.99,2.42]
[1736371366508,0.5169,195.06,194.99,18.22923878]
[1736371366833,6.2238,195.07,194.99,18.22923878]
[1736371367134,6.2238,195.07,194.99,2.42]
[1736371367623,6.2238,195.07,194.99,18.22923878]
[1736371369104,6.2238,195.07,195.0,15.80923878]
[1736371369306,6.2238,195.07,194.99,18.22923878]
[1736371370129,6.2238,195.07,194.99,26.196884]
[1736371371330,6.2238,195.07,194.99,42.00612278]
[1736371371833,6.2238,195.07,194.99,26.196884]
[1736371373706,6.2238,195.07,194.99,42.00612278]
[1736371374212,6.2238,195.07,194.99,26.196884]
[1736371376732,6.2238,195.07,194.95,35.80923878]
[1736371376932,6.2238,195.07,194.96,15.80923878]
[1736371380044,6.2238,195.07,194.97,15.80923878]
[1736371380616,6.2238,195.07,194.96,39.58612278]
[1736371382624,20.0,195.04,194.94,15.80923878]
[1736371382828,20.0,195.04,194.92,99.82923878]
[1736371383043,20.0,195.03,194.9,19.84503878]
[1736371383428,20.0,195.03,194.9,14.16007905]
[1736371383636,20.0,195.03,194.91,10.12427905]
[1736371384822,20.0,195.02,194.91,10.12427905]
[1736371385227,20.5169,195.02,194.9,11.74007905]
[1736371385434,20.5169,195.02,194.9,1.6158]
[1736371385644,43.776884,195.01,194.87,15.820046]
[1736371385943,50.432384,195.01,194.85,19.901746]
[1736371386162,50.432384,195.01,194.85,4.0817]
[1736371386529,81.3,195.0,194.85,4.0817]
[1736371386734,20.0,194.96,194.82,15.820046]
[1736371386944,2.42,194.95,194.82,15.820046]
[1736371387135,20.0,194.96,194.86,15.820046]
[1736371387330,8.01879969,195.0,194.89,15.820046]
[1736371387564,8.01879969,194.98,194.9,15.820046]
[1736371387723,20.0,194.95,194.88,15.820046]
[1736371388348,20.0,194.98,194.88,15.820046]
[1736371388847,20.0,194.98,194.86,15.820046]
[1736371389050,20.0,194.94,194.85,2.42]
[1736371389632,20.0,194.97,194.85,2.42]
[1736371389834,20.0,194.96,194.85,2.42]
[1736371390327,8.01879969,194.98,194.85,2.42]
[1736371390527,20.0,194.95,194.85,2.42]
[1736371391254,20.0,194.96,194.85,2.42]
[1736371392130,20.0,194.95,194.85,2.42]
[1736371393331,20.0,194.95,194.87,15.820046]
[1736371393551,81.3,194.98,194.89,15.820046]
[1736371394458,24.71206604,195.01,194.91,15.820046]
[1736371394459,8.67446665,195.01,194.91,15.820046]
[1736371394632,8.67446665,195.01,194.86,0.76951193]
[1736371394633,6.6555,195.01,194.92,2.42]
[1736371394962,20.0,194.98,194.92,2.42]
[1736371395336,20.0,194.98,194.92,18.240046]
[1736371395666,6.6555,195.01,194.92,18.240046]
[1736371396246,6.6555,195.01,194.92,2.42]
[1736371399238,89.31879969,195.04,194.95,15.820046]
[1736371399448,89.31879969,195.04,194.97,15.820046]
[1736371400165,81.3,195.04,194.97,15.820046]
[1736371400466,81.3,195.04,194.96,15.820046]
[1736371400963,81.3,195.04,194.97,15.820046]
[1736371401133,81.3,195.04,194.96,15.820046]
[1736371402064,20.0,195.06,194.97,15.820046]
[1736371402860,20.0,195.06,194.96,15.820046]
[1736371403040,20.0,195.06,194.94,15.820046]
[1736371403360,83.33249328,195.09,194.94,2.42]
[1736371403361,20.0,195.05,194.94,2.42]
[1736371405059,20.0,195.04,194.94,2.42]
[1736371405479,20.0,195.04,194.94,18.240046]
[1736371405666,20.0,195.04,194.95,15.820046]
[1736371407869,20.0,195.04,194.94,18.240046]
[1736371408776,20.0,195.02,194.89,17.337346]
[1736371408957,20.0,194.98,194.89,17.337346]
[1736371409160,20.0,194.98,194.9,23.776884]
[1736371409367,20.0,194.98,194.9,39.59693]
[1736371409871,20.0,194.98,194.9,23.776884]
[1736371410174,20.0,194.98,194.89,1.5173]
[1736371413569,20.0,194.98,194.89,17.337346]
[1736371413871,8.01879969,195.01,194.93,15.820046]
[1736371414182,8.01879969,195.01,194.96,15.820046]
[1736371414361,8.01879969,195.01,194.99,15.820046]
[1736371414677,8.01879969,195.01,195.0,15.820046]
[1736371414879,20.0,195.06,194.98,17.323046]
[1736371415071,20.0,195.06,194.99,15.820046]
[1736371415585,89.31879969,195.09,194.99,15.820046]
[1736371415886,81.3,195.09,194.99,15.820046]
[1736371416089,20.0,195.06,195.0,15.820046]
[1736371416454,20.0,195.06,194.99,39.59693]
[1736371417381,20.0,195.06,195.0,15.820046]
[1736371417767,20.0,195.06,195.01,15.820046]
[1736371417963,20.0,195.06,195.0,15.820046]
[1736371418265,20.0,195.06,194.99,39.59693]
[1736371419069,20.0,195.07,194.99,39.59693]
[1736371419252,20.0,195.07,195.0,15.820046]
[1736371419856,6.3822,195.1,195.01,15.820046]
[1736371420062,8.01879969,195.12,195.02,15.820046]
[1736371420282,20.0,195.09,195.01,39.59693]
[1736371420777,8.01879969,195.12,195.02,15.820046]
[1736371421080,87.9439,195.15,195.03,15.820046]
[1736371421260,20.0,195.12,195.03,15.820046]
[1736371421971,20.0,195.12,195.02,15.820046]
[1736371423362,20.0,195.12,195.03,15.820046]
[1736371423759,20.0,195.12,195.02,15.820046]
[1736371424258,2.57964434,195.16,195.05,23.776884]
[1736371424568,20.0,195.14,195.04,15.820046]
[1736371424766,20.0,195.14,195.05,23.776884]
[1736371425075,20.0,195.15,195.02,15.820046]
[1736371425279,20.0,195.15,195.03,39.59693]
[1736371425461,20.0,195.15,195.05,15.820046]
[1736371425663,20.5169,195.16,195.05,15.820046]
[1736371425875,0.5169,195.16,195.05,15.820046]
[1736371426767,20.5169,195.16,195.05,23.776884]
[1736371429282,20.5169,195.16,195.05,15.820046]
[1736371429283,0.5169,195.16,195.05,15.820046]
[1736371429479,20.5169,195.16,195.06,15.820046]
[1736371430680,20.0,195.15,195.01,20.0]
[1736371430887,20.0,195.15,195.04,15.820046]
[1736371431264,20.0,195.15,195.05,39.59693]
[1736371431463,20.0,195.15,195.06,15.820046]
[1736371431670,14.66269969,195.2,195.1,15.820046]
[1736371431871,14.66269969,195.2,195.11,15.820046]
[1736371432983,6.6439,195.2,195.11,15.820046]
[1736371433377,6.6439,195.2,195.12,15.820046]
[1736371433574,81.3,195.23,195.13,15.820046]
[1736371434004,20.0,195.2,195.13,15.820046]
[1736371435105,20.0,195.2,195.11,15.820046]
[1736371436698,20.0,195.2,195.1,15.820046]
[1736371437077,20.0,195.2,195.11,15.820046]
[1736371438199,20.0,195.2,195.09,15.820046]
[1736371440576,20.0,195.2,195.1,15.820046]
[1736371441985,20.0,195.2,195.06,1.5403]
[1736371442192,81.3,195.18,195.06,1.5403]
[1736371443314,81.3,195.18,195.06,17.360346]
[1736371443672,20.0,195.15,195.06,1.5403]
[1736371444174,20.0,195.15,195.06,17.360346]
[1736371445500,20.0,195.15,195.05,15.820046]
[1736371445801,81.3,195.14,195.01,1.5823]
[1736371445997,26.1814,195.11,195.0,20.0]
[1736371447085,26.1814,195.11,195.0,23.776884]
[1736371447401,26.1814,195.11,195.0,39.59693]
[1736371448408,26.1814,195.11,195.0,23.776884]
[1736371449318,26.1814,195.11,194.97,18.240046]
[1736371450404,20.0,195.07,194.96,1.5823]
[1736371450607,20.0,195.07,194.91,19.779346]
[1736371450986,20.0,195.07,194.92,23.776884]
[1736371451224,20.0,195.07,194.92,39.59693]
[1736371451594,22.0756343,195.07,194.92,39.59693]
[1736371452282,22.0756343,195.07,194.96,23.776884]
[1736371452491,22.0756343,195.07,194.91,142.4593]
[1736371452492,20.0,195.07,194.93,0.76917207]
[1736371452693,20.0,195.07,194.97,15.820046]
[1736371453002,20.0,195.07,194.98,2.42]
[1736371453810,20.0,195.07,194.97,2.42]
[1736371455293,20.0,195.07,194.97,18.240046]
[1736371455494,20.0,195.07,194.97,2.42]
[1736371458097,20.0,195.05,194.97,2.42]
[1736371458918,20.0,195.05,194.96,23.776884]
[1736371459112,0.5169,195.09,195.0,39.59693]
[1736371459619,20.0,195.08,195.0,23.776884]
[1736371461018,20.0,195.08,195.0,15.820046]
[1736371461240,20.0,195.08,194.98,15.820046]
[1736371461524,20.0,195.08,194.97,39.59693]
[1736371461899,20.0,195.08,194.97,15.820046]
[1736371462725,20.0,195.08,194.95,39.59693]
[1736371462726,101.3,195.08,194.95,39.59693]
[1736371463721,101.3,195.08,194.93,18.240046]